fUST/lending_fUST_20250826
["ID","MTS","AMOUNT","RATE_DAILY","PERIOD"]
[381425619,1756192524367,-370.40418073,0.00028291,2]
[381425620,1756192526027,-193.49472648,0.00028291,2]
[381425621,1756192527929,-297.61056082,0.00028291,2]
[381425624,1756192530811,-160.0,0.00028291,2]
[381425625,1756192554486,-174.34571015,0.00028291,2]
[381425626,1756192577313,-68.91300963,0.00028291,2]
[381425627,1756192581980,143.09001796,0.00025,2]
[381425628,1756192582005,10000.01,0.00025,2]
[381425629,1756192582028,10000.01,0.00025,2]
[381425630,1756192582052,10000.01,0.00025,2]
[381425631,1756192582076,10000.01,0.00025,2]
[381425632,1756192582099,10000.01,0.00025,2]
[381425633,1756192582123,10000.01,0.00025,2]
[381425634,1756192582147,10000.01,0.00025,2]
[381425635,1756192582169,10000.01,0.00025,2]
[381425636,1756192582194,5274.82998204,0.00025,2]
[381425637,1756192591977,497.17821854,0.000199,2]
[381425638,1756192592049,497.17821835,0.00021627,2]
[381425639,1756192592184,497.17821835,0.00023353,2]
[381425640,1756192592462,497.17821835,0.0002508,2]
[381425641,1756192592718,497.17821835,0.00026806,6]
[381425642,1756192597149,2239.28892602,0.000281,2]
[381425643,1756192597176,297.39737655,0.000281,2]
[381425644,1756192614552,2463.31369743,0.000281,2]
[381425645,1756192631562,262.77,0.000281,30]
[381425646,1756192694752,175.18,0.000281,30]
[381425647,1756192714945,5000.0,0.000281,2]
[381425648,1756192732183,1189.98748393,0.000281,2]
[381425649,1756192758031,611.36144209,0.000281,2]
[381425650,1756192758054,4401.33855791,0.000281,2]
[381425651,1756192769269,561.89330537,0.000199,2]
[381425652,1756192769395,561.89330528,0.00021627,2]
[381425653,1756192769530,561.89330528,0.00023353,2]
[381425654,1756192769692,561.89330528,0.0002508,2]
[381425655,1756192769831,561.89330528,0.00026806,6]
[381425657,1756192808145,407.5295621,0.000253,2]
[381425658,1756192819989,190.58,0.00026806,7]
[381425659,1756192854935,241.46,0.00026027,14]
[381425660,1756192945965,509.44260576,0.000199,2]
[381425661,1756192946076,509.44260553,0.00021627,2]
[381425662,1756192946285,509.44260553,0.00023353,2]
[381425663,1756192946412,421.30753668,0.0002508,2]
[381425664,1756192946446,88.13506885,0.0002508,2]
[381425665,1756192946527,509.44260553,0.00026806,6]
[381425669,1756193089491,164.687487,0.00013699,2]
[381425670,1756193089716,164.687487,0.00024907,2]
[381425671,1756193123392,424.53550485,0.000199,2]
[381425672,1756193123582,424.5355046,0.00021627,2]
[381425673,1756193123675,424.5355046,0.00023353,2]
[381425674,1756193123803,239.889839,0.00025778,2]
[381425675,1756193123842,424.5355046,0.0002508,2]
[381425676,1756193123956,424.5355046,0.00026806,6]
[381425677,1756193124431,160.11626619,0.00026044,2]
[381425678,1756193124458,17.01205487,0.00026044,2]
[381425679,1756193230278,1000.0,0.0002799,30]
[381425680,1756193271209,625.68522676,0.00025204,2]
[381425682,1756193314541,464.01340438,0.000199,2]
[381425683,1756193314815,464.01340422,0.00021627,2]
[381425684,1756193314951,464.01340422,0.00023353,2]
[381425685,1756193315090,464.01340422,0.0002508,2]
[381425686,1756193315196,464.01340422,0.00026806,6]
[381425687,1756193325910,2747.72568648,0.00019063,2]
[381425688,1756193325935,4264.31510166,0.00019063,2]
[381425689,1756193327136,5735.69489834,0.000281,2]
[381425690,1756193327162,10000.01,0.000281,2]
[381425691,1756193327186,10000.01,0.000281,2]
[381425692,1756193327211,1133.28510166,0.000281,2]
[381425693,1756193393878,4081.9985611,0.00028022,2]
[381425707,1756193432670,161.0,0.00026736,120]
[381425755,1756193433909,161.0,0.00028073,120]
[381425784,1756193438940,-464.01340422,0.00028533,10]
[381425785,1756193438950,-313.6066591,0.00028768,2]
[381425786,1756193438960,-182.61459,0.00028868,2]
[381425787,1756193438970,-203.01623307,0.00028968,2]
[381425802,1756193439226,-1794.16706165,0.00029061,2]
[381425805,1756193439251,-173.304515,0.00029068,2]
[381425807,1756193439260,-150.84,0.00029124,15]
[381425809,1756193439269,-159.62,0.00029125,15]
[381425811,1756193439278,-159.62,0.00029132,15]
[381425813,1756193439287,-1200.0,0.00029156,2]
[381425815,1756193439296,-300.0,0.00029156,2]
[381425817,1756193439306,-300.0,0.00029157,2]
[381425819,1756193439316,-300.0,0.00029157,2]
[381425821,1756193439326,-300.0,0.00029157,2]
[381425824,1756193439336,-300.0,0.00029157,2]
[381425826,1756193439347,-300.0,0.00029157,2]
[381425828,1756193439356,-485.48549839,0.00029157,2]
[381425830,1756193439365,-500.0,0.00029157,2]
[381425831,1756193439375,-500.0,0.00029157,2]
[381425833,1756193439384,-500.0,0.00029157,2]
[381425835,1756193439394,-500.0,0.00029157,2]
[381425837,1756193439404,-478.9516331,0.00029157,2]
[381425839,1756193439413,-160.99961338,0.00029157,2]
[381425841,1756193439423,-500.0,0.00029157,2]
[381425843,1756193439432,-500.0,0.00029157,2]
[381425845,1756193439442,-500.0,0.00029157,2]
[381425847,1756193439451,-500.0,0.00029157,2]
[381425850,1756193439469,-152.87746494,0.00029157,2]
[381425852,1756193439481,-500.0,0.00029157,2]
[381425854,1756193439491,-500.0,0.00029157,2]
[381425856,1756193439502,-500.0,0.00029157,2]
[381425858,1756193439511,-500.0,0.00029157,2]
[381425861,1756193439522,-500.0,0.00029157,2]
[381425863,1756193439532,-500.0,0.00029157,2]
[381425865,1756193439542,-500.0,0.00029157,2]
[381425867,1756193439555,-500.0,0.00029157,2]
[381425869,1756193439565,-500.0,0.00029157,2]
[381425871,1756193439575,-454.32789135,0.00029157,2]
[381425873,1756193439585,-500.0,0.00029157,2]
[381425875,1756193439595,-627.18677004,0.00029157,2]
[381425877,1756193439605,-500.0,0.00029157,2]
[381425878,1756193439614,-500.0,0.00029157,2]
[381425880,1756193439625,-500.0,0.00029157,2]
[381425882,1756193439635,-500.0,0.00029157,2]
[381425884,1756193439645,-500.0,0.00029157,2]
[381425886,1756193439655,-500.0,0.00029157,2]
[381425888,1756193439664,-500.0,0.00029157,2]
[381425890,1756193439674,-500.0,0.00029157,2]
[381425892,1756193439685,-500.0,0.00029157,2]
[381425894,1756193439695,-500.0,0.00029157,2]
[381425896,1756193439704,-185.06433033,0.00029157,2]
[381425898,1756193439714,-500.0,0.00029157,2]
[381425900,1756193439724,-500.0,0.00029157,2]
[381425902,1756193439734,-500.0,0.00029157,2]
[381425904,1756193439744,-500.0,0.00029157,2]
[381425906,1756193439754,-500.0,0.00029157,2]
[381425908,1756193439764,-500.0,0.00029157,2]
[381425910,1756193439774,-500.0,0.00029157,2]
[381425913,1756193439787,-500.0,0.00029157,2]
[381425915,1756193439798,-500.0,0.00029157,2]
[381425917,1756193439807,-500.0,0.00029157,2]
[381425919,1756193439817,-285.60016332,0.00029157,2]
[381425921,1756193439826,-500.0,0.00029157,2]
[381425923,1756193439836,-454.38798281,0.00029157,2]
[381425924,1756193439845,-500.0,0.00029157,2]
[381425926,1756193439856,-500.0,0.00029157,2]
[381425928,1756193439866,-50000.0,0.00029158,2]
[381425930,1756193439875,-500.0,0.00029159,2]
[381425933,1756193439885,-1200.0,0.00029159,2]
[381425935,1756193439896,-746.62973262,0.00029161,2]
[381425937,1756193439906,-10491.8501547,0.00029162,2]
[381425939,1756193439916,-500.0,0.00029173,5]
[381425941,1756193439926,-500.0,0.00029173,5]
[381425943,1756193439936,-500.0,0.00029173,5]
[381425945,1756193439946,-500.0,0.00029173,5]
[381425947,1756193439955,-500.0,0.00029173,5]
[381425949,1756193439966,-500.0,0.00029173,5]
[381425951,1756193439976,-501.05174374,0.00029173,5]
[381425953,1756193439985,-500.0,0.00029173,5]
[381425955,1756193439996,-150.84,0.00029224,15]
[381425957,1756193440005,-159.62,0.00029225,15]
[381425959,1756193440015,-150.84,0.00029324,15]
[381425961,1756193440025,-159.62,0.00029325,15]
[381425963,1756193440035,-150.84481879,0.00029424,15]
[381425965,1756193440044,-159.62,0.00029425,15]
[381425967,1756193440055,-500.0,0.00029433,2]
[381425969,1756193440064,-159.62,0.00029525,15]
[381425971,1756193440074,-160.0,0.00029568,2]
[381425973,1756193440085,-160.0,0.00029617,2]
[381425975,1756193440096,-160.0,0.00029617,2]
[381425977,1756193440106,-529.4218694,0.00029617,2]
[381425979,1756193440115,-160.0,0.00029617,2]
[381425981,1756193440125,-160.0,0.00029617,2]
[381425983,1756193440135,-500.0,0.0002962,2]
[381425985,1756193440145,-960.00604869,0.0002962,2]
[381425987,1756193440154,-366.9548562,0.0002962,2]
[381425989,1756193440164,-960.00604869,0.0002962,2]
[381425992,1756193440173,-960.00604869,0.0002962,2]
[381425995,1756193440183,-960.00604869,0.0002962,2]
[381425997,1756193440192,-960.00604869,0.0002962,2]
[381425999,1756193440202,-960.00604869,0.0002962,2]
[381426001,1756193440212,-960.00604869,0.0002962,2]
[381426003,1756193440222,-57248.1780436,0.00029621,2]
[381426006,1756193440232,-1943.77745738,0.00029621,2]
[381426009,1756193440241,-159.62,0.00029625,15]
[381426012,1756193440251,-12704.43797926,0.00029631,2]
[381426014,1756193440261,-845.07960918,0.0002965,2]
[381426016,1756193440270,-500.0,0.00029707,2]
[381426017,1756193440280,-502.27200651,0.00029721,5]
[381426019,1756193440289,-1000.0,0.00029721,5]
[381426021,1756193440299,-548.61362891,0.00029721,5]
[381426023,1756193440308,-174.03375128,0.00029721,5]
[381426025,1756193440318,-159.62,0.00029725,15]
[381426027,1756193440327,-300.0,0.00029741,20]
[381426029,1756193440337,-300.0,0.00029741,20]
[381426031,1756193440346,-300.0,0.00029741,20]
[381426033,1756193440356,-600.0,0.00029743,20]
[381426036,1756193440365,-500.0,0.00029782,5]
[381426038,1756193440375,-501.29256613,0.00029782,5]
[381426039,1756193440385,-500.0,0.00029782,5]
[381426041,1756193440395,-500.0,0.00029782,5]
[381426044,1756193440405,-500.0,0.00029782,5]
[381426045,1756193440415,-500.0,0.00029782,5]
[381426047,1756193440424,-360.0,0.00029822,2]
[381426049,1756193440434,-159.62,0.00029825,15]
[381426051,1756193440443,-500.0,0.00029981,2]
[381426053,1756193440452,-1000.0,0.0003,14]
[381426055,1756193440462,-300.0,0.00030137,120]
[381426057,1756193440471,-500.0,0.00030255,2]
[381426059,1756193440481,-464.01340422,0.00030259,13]
[381426061,1756193440491,-1000.0,0.00030268,5]
[381426063,1756193440500,-951.01588107,0.0003033,5]
[381426065,1756193440510,-500.0,0.0003033,5]
[381426067,1756193440519,-1000.0,0.0003033,5]
[381426069,1756193440529,-500.0,0.00030529,2]
[381426071,1756193440538,-500.0,0.00030803,2]
[381426072,1756193440549,-500.0,0.00030878,5]
[381426074,1756193440560,-153.7,0.00030899,2]
[381426076,1756193440570,-153.7,0.00030899,2]
[381426078,1756193440579,-2038444.67563208,0.000309,2]
[381426080,1756193440590,-270.0,0.00030935,2]
[381426082,1756193440599,-100000.0,0.0003099,2]
[381426084,1756193440609,-154.0,0.00031,120]
[381426086,1756193440618,-500.0,0.00031077,2]
[381426088,1756193440628,-1794.16706161,0.00031157,2]
[381426090,1756193440638,-313.0,0.00031268,2]
[381426092,1756193440647,-180.0541423,0.00031271,2]
[381426094,1756193440657,-362.92583263,0.00031351,2]
[381426096,1756193440667,-420.0,0.00031451,3]
[381426098,1756193440676,-714.64413099,0.00031452,2]
[381426100,1756193440685,-420.0,0.00031452,3]
[381426102,1756193440695,-420.0,0.00031452,2]
[381426104,1756193440705,-420.0,0.00031452,3]
[381426106,1756193440714,-420.0,0.00031452,3]
[381426108,1756193440723,-1171.0,0.00031454,3]
[381426110,1756193440734,-505.61033,0.0003146,5]
[381426112,1756193440743,-500.0,0.0003146,5]
[381426114,1756193440753,-160.0,0.00031496,2]
[381426116,1756193440763,-232.53539143,0.00031496,2]
[381426118,1756193440772,-1680.0,0.00031586,3]
[381426120,1756193440782,-1990.321874,0.000316,7]
[381426122,1756193440791,-151.0,0.000316,12]
[381426124,1756193440801,-175.749,0.0003177,30]
[381426126,1756193440810,-3340.82095663,0.00031817,2]
[381426128,1756193440820,-181.97,0.00031834,120]
[381426130,1756193440829,-150.5,0.00031844,120]
[381426132,1756193440839,-150.5,0.00031854,120]
[381426134,1756193440849,-159.535,0.00031864,2]
[381426136,1756193440859,-240.694639,0.00031864,10]
[381426138,1756193440869,-829039.50984384,0.00031864,20]
[381426140,1756193440879,-5980.15968823,0.00031864,7]
[381426142,1756193440888,-858.77630464,0.00031864,30]
[381426144,1756193440897,-49857.30073436,0.00031864,2]
[381426146,1756193440907,-1189.90614119,0.00031864,2]
[381426148,1756193440916,-882.10293333,0.00031864,30]
[381426150,1756193440926,-579.06340537,0.00031864,5]
[381426152,1756193440935,-6409.8759588,0.00031864,30]
[381426154,1756193440944,-258.20860713,0.00031864,2]
[381426156,1756193440954,-151.594813,0.00031864,7]
[381426158,1756193440964,-151.0,0.00031864,7]
[381426160,1756193440973,-3560.35,0.00031864,7]
[381426162,1756193440983,-3560.35,0.00031864,7]
[381426164,1756193440993,-3560.35,0.00031864,7]
[381426166,1756193441003,-3560.35,0.00031864,7]
[381426167,1756193441012,-152.895389,0.00031864,7]
[381426169,1756193441022,-151.0,0.00031864,7]
[381426171,1756193441031,-245.143738,0.00031864,7]
[381426173,1756193441041,-245.143738,0.00031864,7]
[381426175,1756193441051,-245.143738,0.00031864,7]
[381426177,1756193441060,-245.143738,0.00031864,7]
[381426179,1756193441070,-500.0,0.00031873,5]
[381426181,1756193441080,-500.0,0.00031873,5]
[381426183,1756193441090,-500.0,0.00031873,5]
[381426185,1756193441099,-500.0,0.00031873,5]
[381426187,1756193441109,-500.0,0.00031873,5]
[381426189,1756193441119,-500.0,0.00031873,5]
[381426191,1756193441129,-500.0,0.00031873,5]
[381426194,1756193441138,-247.908144,0.00031917,2]
[381426196,1756193441148,-500.0,0.00031973,5]
[381426198,1756193441158,-500.0,0.00031973,5]
[381426200,1756193441167,-500.0,0.00031973,5]
[381426202,1756193441177,-500.0,0.00031973,5]
[381426203,1756193441187,-500.57010825,0.00031973,5]
[381426205,1756193441197,-500.0,0.00031973,5]
[381426207,1756193441206,-500.0,0.00031973,5]
[381426209,1756193441217,-114496.356087,0.0003198,2]
[381426211,1756193441226,-3887.55491476,0.0003198,2]
[381426213,1756193441236,-3560.35,0.0003198,7]
[381426215,1756193441246,-3560.35,0.0003198,7]
[381426217,1756193441255,-3560.35,0.0003198,7]
[381426219,1756193441265,-3560.35,0.0003198,7]
[381426221,1756193441274,-151.0,0.0003198,7]
[381426223,1756193441284,-245.143738,0.0003198,7]
[381426225,1756193441294,-151.0,0.0003198,7]
[381426227,1756193441304,-245.143738,0.0003198,7]
[381426229,1756193441314,-245.143738,0.0003198,7]
[381426231,1756193441323,-245.143738,0.0003198,7]
[381426233,1756193441332,-464.01340422,0.00031986,17]
[381426235,1756193441343,-1228.42618746,0.00032069,2]
[381426237,1756193441352,-1009.06738748,0.00032421,5]
[381426239,1756193441363,-500.0,0.00032421,5]
[381426241,1756193441373,-1000.0,0.00032421,5]
[381426243,1756193441383,-1000.0,0.00032421,5]
[381426245,1756193441392,-1000.0,0.00032421,5]
[381426247,1756193441401,-1000.0,0.00032521,5]
[381426249,1756193441411,-500.0,0.00032521,5]
[381426251,1756193441421,-1000.0,0.00032521,5]
[381426253,1756193441430,-250.0,0.00032543,2]
[381426255,1756193441439,-720.0,0.00032717,20]
[381426257,1756193441448,-501.4000978,0.00032775,2]
[381426259,1756193441458,-301.93998937,0.00032877,120]
[381426261,1756193441467,-502.96478376,0.00032968,5]
[381426263,1756193441476,-343.64439473,0.00032968,5]
[381426265,1756193441486,-1500.0,0.00032968,5]
[381426267,1756193441496,-1500.0,0.00033068,5]
[381426269,1756193441506,-918.06854337,0.00033171,2]
[381426271,1756193441515,-179.71246006,0.00033227,10]
[381426273,1756193441526,-1794.16706161,0.00033254,2]
[381426275,1756193441535,-378.37076561,0.00033352,2]
[381426277,1756193441545,-2000.0,0.00033516,5]
[381426279,1756193441559,-500.0,0.00033616,5]
[381426281,1756193441569,-1000.0,0.00033679,14]
[381426283,1756193441579,-57248.1780436,0.00033689,2]
[381426285,1756193441589,-1943.77745738,0.00033689,2]
[381426287,1756193441600,-20380.9060484,0.00033699,2]
[381426289,1756193441609,-464.01340422,0.00033712,21]
[381426291,1756193441619,-199.0,0.00033769,120]
[381426293,1756193441631,-5000.0,0.00033864,4]
[381426295,1756193441640,-915.68,0.00033873,120]
[381426297,1756193441650,-1939.88750512,0.00033874,2]
[381426299,1756193441659,-380.0,0.00033927,3]
[381426301,1756193441669,-587.0,0.00033928,2]
[381426303,1756193441679,-380.0,0.00033928,3]
[381426305,1756193441688,-380.0,0.00033928,3]
[381426307,1756193441698,-587.0,0.00033928,3]
[381426309,1756193441707,-2985.1350151,0.00034,2]
[381426311,1756193441717,-2500.0,0.00034064,5]
[381426313,1756193441726,-3068.30485953,0.00034123,2]
[381426315,1756193441735,-3560.35,0.00034204,7]
[381426317,1756193441745,-3560.35,0.00034204,7]
[381426319,1756193441757,-3560.35,0.00034204,7]
[381426321,1756193441767,-3560.35,0.00034204,7]
[381426323,1756193441776,-151.0,0.00034204,7]
[381426325,1756193441786,-245.143738,0.00034204,7]
[381426327,1756193441796,-151.0,0.00034204,7]
[381426329,1756193441806,-245.143738,0.00034204,7]
[381426331,1756193441816,-245.143738,0.00034204,7]
[381426333,1756193441826,-245.143738,0.00034204,7]
[381426335,1756193441836,-57248.1780436,0.00034204,2]
[381426337,1756193441846,-1943.77745738,0.00034204,2]
[381426339,1756193441855,-2351.0,0.00034219,3]
[381426341,1756193441865,-309.97533521,0.00034393,2]
[381426343,1756193441874,-512.47,0.00034584,3]
[381426344,1756193441884,-170.81,0.00034585,3]
[381426346,1756193441894,-57248.1780436,0.00034585,2]
[381426348,1756193441904,-1943.77745738,0.00034585,2]
[381426350,1756193441914,-160.0,0.00034593,7]
[381426352,1756193441923,-160.0,0.00034593,7]
[381426354,1756193441932,-4539.2600273,0.00034595,2]
[381426356,1756193441942,-27091.4604715,0.00034595,2]
[381426358,1756193441951,-1820.6335272,0.00034595,2]
[381426360,1756193441960,-20769.8401978,0.00034595,2]
[381426362,1756193441969,-3000.0,0.00034612,5]
[381426364,1756193441978,-500.55,0.00035,120]
[381426366,1756193441988,-1943.77745738,0.00035042,2]
[381426368,1756193441999,-485.33,0.00035053,3]
[381426370,1756193442008,-16886.8194906,0.00035063,120]
[381426372,1756193442018,-160.0,0.00035063,120]
[381426374,1756193442027,-160.0,0.00035063,120]
[381426376,1756193442036,-160.0,0.00035063,120]
[381426378,1756193442045,-217.18350301,0.000351,120]
[381426380,1756193442055,-4550.76445516,0.00035107,2]
[381426382,1756193442064,-470.48431128,0.00035107,2]
[381426384,1756193442074,-1881.9372451,0.00035107,2]
[381426386,1756193442083,-546.08317985,0.0003516,5]
[381426388,1756193442093,-217.18350301,0.000353,7]
[381426390,1756193442102,-1794.16706161,0.0003535,2]
[381426392,1756193442113,-323.53,0.00035357,3]
[381426394,1756193442122,-161.77,0.00035357,3]
[381426396,1756193442132,-845.07960918,0.00035357,3]
[381426398,1756193442141,-160.0,0.00035357,3]
[381426400,1756193442151,-160.0,0.00035357,3]
[381426402,1756193442160,-1737.1735405,0.00035368,2]
[381426404,1756193442169,-217.18350301,0.000354,3]
[381426406,1756193442179,-160.0,0.000354,3]
[381426408,1756193442188,-151.0,0.00035436,2]
[381426410,1756193442198,-151.0,0.00035436,2]
[381426411,1756193442207,-152.52627049,0.00035436,2]
[381426413,1756193442217,-151.0,0.00035436,2]
[381426415,1756193442226,-151.35272218,0.00035436,2]
[381426417,1756193442236,-464.01340422,0.00035439,24]
[381426419,1756193442245,-151.0,0.00035439,7]
[381426421,1756193442256,-915.68,0.00035516,120]
[381426423,1756193442265,-1943.77745738,0.00035532,3]
[381426425,1756193442275,-3068.30485952,0.00035542,2]
[381426427,1756193442284,-500.0,0.00035616,7]
[381426429,1756193442294,-500.0,0.00035616,7]
[381426431,1756193442303,-227.75090983,0.00035616,7]
[381426433,1756193442312,-3340.82095662,0.00035809,2]
[381426435,1756193442322,-173.304515,0.00035917,2]
[381426437,1756193442331,-500.0,0.00035973,5]
[381426439,1756193442340,-3560.35,0.00035973,30]
[381426441,1756193442350,-3560.35,0.00035973,30]
[381426443,1756193442359,-3560.35,0.00035973,30]
[381426445,1756193442369,-3560.35,0.00035973,30]
[381426447,1756193442378,-245.143738,0.00035973,30]
[381426449,1756193442388,-245.143738,0.00035973,30]
[381426451,1756193442398,-245.143738,0.00035973,30]
[381426453,1756193442408,-245.143738,0.00035973,30]
[381426455,1756193442417,-864.0,0.00035989,20]
[381426457,1756193442427,-151.0,0.0003599,30]
[381426459,1756193442436,-151.0,0.0003599,30]
[381426461,1756193442445,-3887.55491476,0.0003599,3]
[381426463,1756193442457,-151.0,0.0003599,30]
[381426465,1756193442467,-151.0,0.0003599,30]
[381426467,1756193442476,-151.413158,0.0003599,30]
[381426469,1756193442486,-151.0,0.0003599,30]
[381426471,1756193442496,-151.0,0.0003599,30]
[381426473,1756193442508,-292.985322,0.0003599,30]
[381426475,1756193442517,-3352.81419069,0.00036,7]
[381426478,1756193442533,-29205.44580931,0.00036,7]
[381426480,1756193442542,-23187.75,0.00036,7]
[381426482,1756193442556,-151.0,0.00036,30]
[381426484,1756193442567,-151.0,0.00036,30]
[381426486,1756193442576,-151.0,0.00036,30]
[381426488,1756193442586,-151.0,0.00036,30]
[381426490,1756193442596,-151.0,0.00036,30]
[381426492,1756193442606,-217.18350301,0.00036,30]
[381426494,1756193442615,-217.18350301,0.00036,7]
[381426496,1756193442625,-200.0,0.00036105,120]
[381426498,1756193442635,-164.687487,0.00036115,2]
[381426500,1756193442644,-385.5172574,0.0003637,30]
[381426502,1756193442653,-4634.3777695,0.0003647,2]
[381426504,1756193442663,-4230.12444267,0.00036502,2]
[381426506,1756193442672,-874.23736413,0.00036502,2]
[381426508,1756193442682,-1012.8458168,0.00036502,2]
[381426510,1756193442691,-154.292148,0.00036558,7]
[381426512,1756193442701,-823.0,0.00036599,2]
[381426514,1756193442712,-681.0,0.00036599,3]
[381426516,1756193442721,-153.0,0.00036644,30]
[381426518,1756193442730,-176.8367364,0.00036644,30]
[381426520,1756193442739,-288.7606613,0.00036644,30]
[381426522,1756193442752,-2855.71794744,0.00036669,2]
[381426524,1756193442761,-647.06,0.00036727,3]
[381426526,1756193442770,-323.54,0.00036727,3]
[381426528,1756193442781,-154.292148,0.00036756,20]
[381426530,1756193442791,-152.469055,0.00036756,20]
[381426532,1756193442800,-1034.0694539,0.00036889,2]
[381426534,1756193442809,-225.9964493,0.00036927,2]
[381426536,1756193442819,-3068.30485952,0.00036962,2]
[381426538,1756193442828,-3292.0,0.00037071,3]
[381426540,1756193442838,-409.0,0.00037138,2]
[381426542,1756193442848,-915.68,0.0003716,120]
[381426544,1756193442857,-464.01340422,0.00037166,28]
[381426546,1756193442867,-154.0,0.000372,120]
[381426548,1756193442876,-647.07,0.00037348,3]
[381426550,1756193442886,-780.37630257,0.00037358,14]
[381426552,1756193442896,-160.0,0.00037366,2]
[381426554,1756193442905,-160.0,0.00037366,2]
[381426556,1756193442914,-216.09257821,0.00037387,2]
[381426558,1756193442924,-217.18350301,0.0003739,2]
[381426560,1756193442933,-376.39720582,0.0003739,2]
[381426562,1756193442942,-160.0,0.0003739,2]
[381426564,1756193442953,-237.0,0.00037397,120]
[381426566,1756193442962,-1794.16706161,0.00037446,2]
[381426568,1756193442971,-160.9187611,0.00037452,30]
[381426570,1756193442981,-161.0922331,0.00037466,30]
[381426572,1756193442991,-161.0922331,0.00037466,30]
[381426574,1756193443001,-153.0,0.00037466,30]
[381426576,1756193443010,-153.0,0.00037466,30]
[381426578,1756193443020,-153.0,0.00037466,30]
[381426580,1756193443029,-153.0,0.00037466,30]
[381426582,1756193443039,-153.0,0.00037466,30]
[381426584,1756193443048,-153.0,0.00037466,30]
[381426586,1756193443058,-153.0,0.00037466,30]
[381426588,1756193443067,-181.495,0.00037474,2]
[381426590,1756193443076,-150.0,0.00037474,2]
[381426592,1756193443086,-235.0,0.00037687,2]
[381426594,1756193443096,-209.51943499,0.00037727,2]
[381426596,1756193443105,-151.0,0.00037727,2]
[381426598,1756193443114,-151.0,0.00037727,2]
[381426600,1756193443124,-194.72792766,0.00037727,2]
[381426602,1756193443133,-207.30377708,0.00037727,2]
[381426604,1756193443143,-300.0,0.00037727,2]
[381426606,1756193443152,-300.0,0.00037727,2]
[381426608,1756193443161,-300.0,0.00037727,2]
[381426610,1756193443172,-206.76850988,0.00037727,2]
[381426612,1756193443181,-250.0,0.00037727,2]
[381426614,1756193443192,-250.0,0.00037727,2]
[381426615,1756193443203,-250.0,0.00037727,2]
[381426617,1756193443213,-151.37707569,0.00037727,2]
[381426619,1756193443223,-237.0,0.0003783,2]
[381426621,1756193443233,-235.0,0.00037938,7]
[381426623,1756193443242,-1577.0468237,0.00038,2]
[381426625,1756193443252,-160.0,0.00038,3]
[381426627,1756193443261,-154.292148,0.00038116,7]
[381426646,1756193443454,-152.469055,0.00038116,7]
[381426648,1756193443463,-161.0922331,0.00038237,30]
[381426650,1756193443474,-1177.6450248,0.00038237,30]
[381426651,1756193443483,-656.9018444,0.00038237,30]
[381426653,1756193443493,-783.7441614,0.00038237,30]
[381426655,1756193443503,-153.0,0.00038237,30]
[381426656,1756193443512,-153.0,0.00038237,30]
[381426658,1756193443522,-161.0922331,0.00038237,30]
[381426660,1756193443532,-161.0922331,0.00038237,30]
[381426662,1756193443541,-153.0,0.00038237,30]
[381426663,1756193443555,-161.0922331,0.00038237,30]
[381426665,1756193443564,-153.0,0.00038237,30]
[381426667,1756193443573,-161.0922331,0.00038237,30]
[381426668,1756193443583,-153.0,0.00038237,30]